bitfinex/quotes_BTCUSD_20251214
["timestamp","ask_amount","ask_price","bid_price","bid_amount"]
[1765742714984,0.21961198,88700.0,88699.0,0.45311839]
[1765742715134,0.21961198,88700.0,88699.0,2.47091839]
[1765742715770,0.21961198,88700.0,88699.0,2.50475382]
[1765742716182,0.22161198,88700.0,88699.0,2.50636669]
[1765742716486,0.22361198,88700.0,88699.0,2.50636669]
[1765742719881,0.22361198,88700.0,88699.0,2.47253126]
[1765742725876,0.22361198,88700.0,88699.0,0.76177126]
[1765742726125,0.22361198,88700.0,88699.0,0.71227226]
[1765742726366,0.22361198,88700.0,88699.0,0.73007226]
[1765742728177,0.22361198,88700.0,88699.0,0.63801526]
[1765742730049,0.22361198,88700.0,88699.0,0.58600726]
[1765742730256,0.22361198,88700.0,88699.0,0.58724726]
[1765742733592,0.26573198,88700.0,88699.0,0.45543439]
[1765742733805,0.26573198,88700.0,88699.0,0.114716]
[1765742733975,0.26573198,88700.0,88698.0,0.0178]
[1765742733976,0.22548168,88699.0,88698.0,0.06781839]
[1765742734235,0.27990168,88699.0,88698.0,0.06781839]
[1765742734444,0.27990168,88699.0,88698.0,0.0178]
[1765742735202,0.28590168,88699.0,88698.0,0.0178]
[1765742736610,0.29090168,88699.0,88698.0,0.0178]
[1765742739139,0.06542,88699.0,88698.0,0.0178]
[1765742740671,0.011,88699.0,88698.0,0.0178]
[1765742741456,0.005,88699.0,88698.0,0.0178]
[1765742741665,0.005,88699.0,88698.0,0.1302]
[1765742741869,0.009,88699.0,88698.0,0.1302]
[1765742742176,0.004,88699.0,88698.0,0.1302]
[1765742742562,0.008,88699.0,88698.0,0.1302]
[1765742761756,0.008,88699.0,88698.0,0.47091839]
[1765742763397,0.004,88699.0,88698.0,0.47091839]
[1765742763540,0.21961198,88700.0,88699.0,0.67860007]
[1765742764693,0.22261198,88700.0,88699.0,0.67860007]
[1765742765086,0.22661198,88700.0,88699.0,0.67860007]
[1765742767651,0.26860198,88700.0,88699.0,0.51618168]
[1765742767989,0.26860198,88700.0,88699.0,0.53398168]
[1765742770456,0.26860198,88700.0,88699.0,0.0178]
[1765742770890,0.22661198,88700.0,88699.0,0.06943126]
[1765742771089,0.22661198,88700.0,88699.0,2.47253126]
[1765742771978,0.19279528,88700.0,88699.0,2.47253126]
[1765742772393,0.18979528,88700.0,88699.0,2.47253126]
[1765742772595,0.18979528,88700.0,88699.0,0.93548626]
[1765742772770,0.19179528,88700.0,88699.0,0.93548626]
[1765742772976,0.18779528,88700.0,88699.0,0.93548626]
[1765742773183,0.18979528,88700.0,88699.0,0.93548626]
[1765742773788,0.18979528,88700.0,88699.0,0.79584326]
[1765742773988,0.23178528,88700.0,88699.0,0.34071839]
[1765742774195,0.23178528,88700.0,88699.0,0.3085]
[1765742774413,0.18979528,88700.0,88699.0,0.3085]
[1765742774598,0.18979528,88700.0,88699.0,0.35851839]
[1765742775769,0.18979528,88700.0,88699.0,0.47091839]
[1765742775972,0.18979528,88700.0,88699.0,0.35851839]
[1765742784379,0.18979528,88700.0,88699.0,0.4148234]
[1765742785327,0.18979528,88700.0,88699.0,0.35851839]
[1765742785552,0.18979528,88700.0,88699.0,0.4148234]
[1765742785763,0.18979528,88700.0,88699.0,0.35851839]
[1765742788492,0.20627528,88700.0,88699.0,0.35851839]
[1765742788631,0.18979528,88700.0,88699.0,0.35851839]
[1765742791907,0.18979528,88700.0,88699.0,0.4148234]
[1765742792886,0.18979528,88700.0,88699.0,0.35851839]
[1765742794213,0.18979528,88700.0,88699.0,0.48781426]
[1765742794412,0.18979528,88700.0,88699.0,0.60021426]
[1765742801801,0.18979528,88700.0,88699.0,0.47001426]
[1765742802036,0.18979528,88700.0,88699.0,0.48781426]
[1765742807313,0.18979528,88700.0,88699.0,0.36013126]
[1765742807437,0.18979528,88700.0,88699.0,0.47310726]
[1765742807638,0.18979528,88700.0,88699.0,0.36013126]
[1765742807938,0.18979528,88700.0,88699.0,0.47277926]
[1765742808145,0.18979528,88700.0,88699.0,0.36013126]
[1765742808347,0.21242528,88700.0,88699.0,0.36013126]
[1765742812395,0.21242528,88700.0,88699.0,0.58818126]
[1765742812722,0.21242528,88700.0,88699.0,0.52713326]
[1765742813509,0.22890528,88700.0,88699.0,0.52713326]
[1765742814676,0.22890528,88700.0,88699.0,0.36013126]
[1765742815283,0.22890528,88700.0,88699.0,0.06781839]
[1765742815983,0.22690528,88700.0,88699.0,0.06781839]
[1765742816436,0.22990528,88700.0,88699.0,0.06781839]
[1765742817266,0.22790528,88700.0,88699.0,0.06781839]
[1765742817476,0.23090528,88700.0,88699.0,0.06781839]
[1765742817678,0.23090528,88700.0,88699.0,0.0178]
[1765742821385,0.23090528,88700.0,88692.0,0.30197497]
[1765742821386,0.22549185,88695.0,88692.0,0.30197497]
[1765742821637,0.23690185,88695.0,88693.0,0.0178]
[1765742821883,0.02429,88694.0,88693.0,0.0178]
[1765742822147,0.04047,88694.0,88693.0,0.0178]
[1765742824752,0.04247,88694.0,88693.0,0.0178]
[1765742824974,0.04547,88694.0,88693.0,0.0178]
[1765742825912,0.27096439,88694.0,88693.0,0.0178]
[1765742826797,0.27096439,88694.0,88679.0,0.145971]
[1765742826798,0.01127637,88681.0,88679.0,0.145971]
[1765742827023,0.01127637,88681.0,88677.0,0.30197688]
[1765742827024,0.01127649,88680.0,88677.0,0.30197688]
[1765742827316,0.02759,88678.0,88677.0,0.30197688]
[1765742827523,0.02759,88678.0,88675.0,0.02907713]
[1765742827726,0.01618,88676.0,88675.0,0.02907713]
[1765742828076,0.04047,88676.0,88675.0,0.02907713]
[1765742828278,0.04047,88676.0,88675.0,0.54531984]
[1765742828917,0.04347,88676.0,88675.0,0.54531984]
[1765742830101,0.04347,88676.0,88675.0,0.3085]
[1765742830324,0.04447,88676.0,88675.0,0.3085]
[1765742832027,0.04447,88676.0,88675.0,0.53404271]
[1765742832447,0.04447,88676.0,88662.0,0.1124]
[1765742832448,0.01127751,88672.0,88665.0,0.06129679]
[1765742832651,0.02429,88671.0,88668.0,0.22556051]
[1765742832891,0.02429,88671.0,88667.0,0.0178]
[1765742832892,0.01127777,88670.0,88667.0,0.0178]
[1765742833103,0.01127777,88670.0,88659.0,0.22558221]
[1765742833104,0.2256065,88650.0,88645.0,0.01128095]
[1765742833305,0.23690553,88643.0,88639.0,0.01128171]
[1765742833477,0.12375756,88659.0,88632.0,0.23693473]
[1765742833478,0.01128184,88638.0,88632.0,0.23693473]
[1765742833690,0.01141,88638.0,88636.0,0.23692404]
[1765742834141,0.04047,88637.0,88636.0,0.23692404]
[1765742835720,0.04247,88637.0,88636.0,0.23692404]
[1765742836365,0.04347,88637.0,88636.0,0.23692404]
[1765742837008,0.01918,88637.0,88636.0,0.23692404]
[1765742837357,0.01918,88637.0,88635.0,0.01128222]
[1765742837358,0.04347,88637.0,88634.0,0.01128235]
[1765742837565,0.01618,88635.0,88633.0,0.2907]
[1765742837769,0.02729,88637.0,88626.0,0.22566606]
[1765742837770,0.02746235,88634.0,88626.0,0.01128337]
[1765742837915,0.01618,88627.0,88625.0,0.2907]
[1765742838122,0.01128311,88628.0,88622.0,0.0004]
[1765742838123,0.04047,88626.0,88622.0,0.0004]
[1765742838286,0.02759,88623.0,88622.0,0.01168387]
[1765742838677,0.02759,88623.0,88622.0,0.0004]
[1765742838859,0.05188,88623.0,88622.0,0.0004]
[1765742840205,0.05188,88623.0,88622.0,0.0024]
[1765742840540,0.05188,88623.0,88622.0,0.0004]
[1765742840736,0.05288,88623.0,88622.0,0.0004]
[1765742840937,0.05488,88623.0,88622.0,0.0004]
[1765742841336,0.003,88623.0,88622.0,0.0004]
[1765742841562,0.003,88623.0,88622.0,0.45513126]
[1765742842298,0.003,88623.0,88622.0,0.34273126]
[1765742842517,0.003,88623.0,88622.0,0.56840885]
[1765742842706,0.01141,88632.0,88631.0,0.22565468]
[1765742843140,0.02759,88632.0,88631.0,0.22565468]
[1765742843343,0.05188,88632.0,88631.0,0.22565468]
[1765742843682,0.05188,88632.0,88629.0,0.23694186]
[1765742843888,0.01618,88630.0,88629.0,0.23694186]
[1765742844294,0.04047,88630.0,88629.0,0.23694186]
[1765742844750,0.04047,88630.0,88626.0,0.01128337]
[1765742844969,0.01341,88632.0,88622.0,0.0004]
[1765742844970,0.01128349,88625.0,88622.0,0.0004]
[1765742845127,0.01618,88623.0,88622.0,0.0004]
[1765742845597,0.04047,88623.0,88622.0,0.0004]
[1765742846411,0.04147,88623.0,88622.0,0.0004]
[1765742846655,0.04247,88623.0,88622.0,0.0004]
[1765742847239,0.15481756,88623.0,88622.0,0.0004]
[1765742847469,0.15381756,88623.0,88622.0,0.0004]
[1765742847879,0.15681756,88623.0,88622.0,0.0004]
[1765742848608,0.15581756,88623.0,88622.0,0.0004]
[1765742848864,0.04647,88623.0,88622.0,0.0004]
[1765742849075,0.15881756,88623.0,88622.0,0.0004]
[1765742849491,0.15881756,88623.0,88613.0,0.0004]
[1765742849492,0.33804553,88614.0,88613.0,0.0004]
[1765742849704,0.37202553,88614.0,88613.0,0.0004]
[1765742849910,0.39614553,88614.0,88613.0,0.0004]
[1765742850895,0.40014553,88614.0,88613.0,0.0014]
[1765742852324,0.40414553,88614.0,88613.0,0.0014]
[1765742852901,0.38634553,88614.0,88613.0,0.0014]
[1765742853316,0.27399797,88614.0,88613.0,0.0014]
[1765742858408,0.27399797,88614.0,88604.0,0.0004]
[1765742858409,0.11234756,88605.0,88604.0,0.0004]
[1765742858609,0.36551845,88605.0,88604.0,0.0004]
[1765742858812,0.38963845,88605.0,88604.0,0.0004]
[1765742859466,0.40012677,88605.0,88604.0,0.0004]
[1765742859611,0.40312677,88605.0,88604.0,0.00078672]
[1765742860022,0.40212677,88605.0,88604.0,0.00078672]
[1765742860198,0.40012677,88605.0,88604.0,0.00078672]
[1765742860829,0.28777921,88605.0,88604.0,0.00078672]
[1765742861028,0.40012677,88605.0,88604.0,0.00078672]
[1765742861190,0.52172677,88605.0,88604.0,0.00178672]
[1765742861405,0.5478901,88605.0,88604.0,0.00178672]
[1765742861675,0.01128719,88596.0,88590.0,0.0004]
[1765742861960,0.36554648,88594.0,88590.0,0.0004]
[1765742862178,0.41803813,88594.0,88590.0,0.0004]
[1765742862350,0.47240058,88594.0,88590.0,0.0004]
[1765742862564,0.44215813,88594.0,88590.0,0.0004]
[1765742862959,0.47242061,88594.0,88593.0,0.0014]
[1765742863178,0.44215813,88594.0,88593.0,0.0014]
[1765742863352,0.47242057,88594.0,88593.0,0.0014]
[1765742863741,0.44215813,88594.0,88593.0,0.0014]
[1765742864146,0.44215813,88594.0,88593.0,0.0004]
[1765742864402,0.47241507,88594.0,88593.0,0.0004]
[1765742864610,0.49041507,88594.0,88593.0,0.0024]
[1765742864810,0.46015813,88594.0,88593.0,0.0024]
[1765742866605,0.49041507,88594.0,88593.0,0.0024]
[1765742867263,0.46015813,88594.0,88593.0,0.0024]
[1765742867464,0.75085813,88594.0,88593.0,0.0024]
[1765742872134,0.7811155,88594.0,88593.0,0.0024]
[1765742872339,0.75085813,88594.0,88593.0,0.0024]
[1765742872785,0.75087803,88594.0,88593.0,0.0024]
[1765742875754,0.32999047,88594.0,88593.0,0.0024]
[1765742876411,0.09373333,88594.0,88593.0,0.0024]
[1765742876633,0.06957,88594.0,88593.0,0.0024]
[1765742876847,0.05957,88594.0,88593.0,0.0014]
[1765742877048,0.06057,88594.0,88593.0,0.0014]
[1765742877445,0.06157,88594.0,88593.0,0.0014]
[1765742877692,0.05257,88594.0,88593.0,0.0004]
[1765742877896,0.05557,88594.0,88593.0,0.0014]
[1765742878331,0.16791756,88594.0,88593.0,0.0014]
[1765742878616,0.33809903,88593.0,88592.0,0.0004]
[1765742878866,0.26556147,88593.0,88592.0,0.0004]
[1765742879067,0.03981,88593.0,88592.0,0.0004]
[1765742879919,0.04281,88593.0,88592.0,0.0014]
[1765742880543,0.04381,88593.0,88592.0,0.0014]
[1765742880744,0.004,88593.0,88592.0,0.22715401]
[1765742881903,0.004,88593.0,88592.0,0.22726972]
[1765742882104,0.04381,88593.0,88592.0,0.00151571]
[1765742888075,0.004,88593.0,88592.0,0.00312858]
[1765742888719,0.004,88593.0,88592.0,0.45624697]
[1765742888950,0.001,88593.0,88592.0,0.45524697]
[1765742889366,0.001,88593.0,88592.0,0.45624697]
[1765742889709,0.001,88593.0,88592.0,0.80944997]
[1765742890004,0.01128464,88616.0,88612.0,0.01128515]
[1765742890214,0.01127,88618.0,88600.0,0.22573314]
[1765742890215,0.01128591,88606.0,88600.0,0.23701968]
[1765742890431,0.01128591,88606.0,88605.0,0.01784]
[1765742890847,0.02681591,88606.0,88605.0,0.01784]
[1765742891285,0.05109591,88606.0,88605.0,0.01784]
[1765742892387,0.03981,88606.0,88605.0,0.01784]
[1765742893259,0.04081,88606.0,88605.0,0.01984]
[1765742893675,0.03981,88606.0,88605.0,0.01984]
[1765742894098,0.01553,88606.0,88605.0,0.01784]
[1765742894311,0.01145,88613.0,88610.0,0.0112854]
[1765742894518,0.01127,88618.0,88617.0,0.22569033]
[1765742894939,0.0268,88618.0,88617.0,0.22569033]
[1765742895146,0.0268,88618.0,88615.0,0.23697878]
[1765742895385,0.02681464,88616.0,88612.0,0.23698821]
[1765742895602,0.02698,88613.0,88612.0,0.23698821]
[1765742895967,0.05126,88613.0,88612.0,0.23698821]
[1765742896650,0.05126,88613.0,88611.0,0.22570561]
[1765742896872,0.02428,88612.0,88611.0,0.22570561]
[1765742897057,0.03981,88612.0,88611.0,0.22570561]
[1765742898006,0.03981,88612.0,88611.0,0.22670561]
[1765742898203,0.03981,88612.0,88611.0,0.22570561]
[1765742899391,0.04181,88612.0,88611.0,0.22570561]
[1765742899621,0.04181,88612.0,88611.0,0.22670561]
[1765742899820,0.01753,88612.0,88611.0,0.22670561]
[1765742900562,0.002,88612.0,88611.0,0.22670561]
[1765742901589,0.03555,88618.0,88617.0,0.22569033]
[1765742901974,0.05108,88618.0,88613.0,0.01128502]
[1765742902175,0.02698,88613.0,88612.0,0.01128515]
[1765742902613,0.05126,88613.0,88612.0,0.01128515]
[1765742903418,0.05126,88613.0,88612.0,0.01328515]
[1765742904424,0.05226,88613.0,88612.0,0.01328515]
[1765742910266,0.001,88613.0,88612.0,0.01328515]
[1765742916018,0.0394,88613.0,88612.0,0.002]
[1765742916891,0.0394,88613.0,88612.0,0.01984]
[1765742917651,0.0394,88613.0,88612.0,0.24554306]
[1765742918577,0.001,88613.0,88612.0,0.24554306]
[1765742918907,0.02371,88613.0,88612.0,0.24554306]
[1765742919110,0.0394,88613.0,88612.0,0.24554306]
[1765742919292,0.0394,88613.0,88612.0,0.01984]
[1765742919494,0.15174756,88613.0,88612.0,0.002]
[1765742919695,0.26510051,88613.0,88612.0,0.002]
[1765742923158,0.0394,88613.0,88612.0,0.002]
[1765742923385,0.001,88613.0,88612.0,0.00361287]
[1765742923681,0.001,88613.0,88612.0,0.11601287]
[1765742924105,0.001,88613.0,88612.0,0.00361287]
[1765742924933,0.0394,88613.0,88612.0,0.00361287]
[1765742926668,0.0394,88613.0,88612.0,0.002]
[1765742932637,0.15174756,88613.0,88612.0,0.002]
[1765742933377,0.01128553,88609.0,88606.0,0.01784]
[1765742933582,0.02722,88607.0,88606.0,0.01784]
[1765742933920,0.04993,88607.0,88606.0,0.01784]
[1765742934515,0.22573582,88600.0,88598.0,0.01784]
[1765742934722,0.01153,88600.0,88598.0,0.01784]
[1765742934940,0.0384,88599.0,88598.0,0.01784]
[1765742936022,0.23701339,88603.0,88598.0,0.01784]
[1765742936023,0.01153,88607.0,88603.0,0.22572599]
[1765742936224,0.02271,88612.0,88609.0,0.01128553]
[1765742936448,0.03439,88612.0,88609.0,0.01128553]
[1765742936771,0.01594,88610.0,88609.0,0.23699488]
[1765742937130,0.03889,88610.0,88609.0,0.23699488]
[1765742937330,0.03889,88610.0,88609.0,0.01128553]
[1765742937738,0.03889,88610.0,88609.0,0.01228553]
[1765742938103,0.03889,88610.0,88609.0,0.001]
[1765742938897,0.03989,88610.0,88609.0,0.001]
[1765742939045,0.03989,88610.0,88608.0,0.22571127]
[1765742939247,0.03989,88610.0,88609.0,0.001]
[1765742939810,0.03889,88610.0,88609.0,0.001]
[1765742940220,0.03989,88610.0,88609.0,0.001]
[1765742941324,0.01168,88612.0,88610.0,0.22570815]
[1765742941686,0.01168,88622.0,88621.0,0.23696414]
[1765742941891,0.02295,88621.0,88619.0,0.23696949]
[1765742942287,0.01594,88620.0,88619.0,0.23696949]
[1765742942910,0.01168,88622.0,88621.0,0.22568014]
[1765742943127,0.05057,88622.0,88621.0,0.22568014]
[1765742944831,0.05157,88622.0,88621.0,0.22568014]
[1765742945811,0.05157,88622.0,88612.0,0.63033207]
[1765742945812,0.01128477,88615.0,88612.0,0.01128515]
[1765742946010,0.03890502,88613.0,88610.0,0.01289827]
[1765742946236,0.24164561,88611.0,88609.0,0.01784]
[1765742946396,0.01594,88610.0,88609.0,0.01784]
[1765742946597,0.03889,88610.0,88609.0,0.01784]
[1765742947365,0.01128617,88604.0,88601.0,0.01128655]
[1765742947578,0.02762,88602.0,88601.0,0.01128655]
[1765742947783,0.02762,88602.0,88601.0,0.01784]
[1765742947922,0.05057,88602.0,88601.0,0.01784]
[1765742948151,0.06185642,88602.0,88601.0,0.01784]
[1765742948563,0.06185642,88602.0,88601.0,0.01884]
[1765742949171,0.06185642,88602.0,88601.0,0.01784]
[1765742949975,0.06185642,88602.0,88601.0,0.01884]
[1765742950981,0.06285642,88602.0,88601.0,0.01884]
[1765742951693,0.06285642,88602.0,88601.0,0.001]
[1765742955002,0.05157,88602.0,88601.0,0.001]
[1765742958421,0.05157,88602.0,88601.0,0.22673108]
[1765742958828,0.05157,88602.0,88601.0,0.22834395]
[1765742959166,0.001,88602.0,88601.0,0.22834395]
[1765742959736,0.03989,88602.0,88601.0,0.22834395]
[1765742961267,0.03989,88602.0,88601.0,0.00261287]
[1765742961467,0.03989,88602.0,88601.0,0.02045287]
[1765742962837,0.03989,88602.0,88601.0,0.0205662]
[1765742963261,0.03989,88602.0,88601.0,0.0027262]
[1765742963478,0.09583415,88602.0,88601.0,0.00111333]
[1765742963817,0.15223756,88602.0,88601.0,0.00111333]
[1765742964144,0.15675601,88602.0,88601.0,0.00111333]
[1765742964678,0.15575601,88602.0,88601.0,0.00111333]
[1765742964918,0.15975601,88602.0,88601.0,0.00111333]
[1765742965258,0.16275601,88602.0,88601.0,0.00111333]
[1765742966888,0.05040845,88602.0,88601.0,0.00111333]
[1765742967093,0.16275601,88602.0,88601.0,0.00111333]
[1765742968389,0.04589,88602.0,88601.0,0.00111333]
[1765742968587,0.27161853,88602.0,88601.0,0.00111333]
[1765742969093,0.38396609,88602.0,88601.0,0.00111333]
[1765742969731,0.27161853,88602.0,88601.0,0.00111333]
[1765742977595,0.04589,88602.0,88601.0,0.00111333]
[1765742980493,0.15823756,88602.0,88601.0,0.00111333]
[1765742982117,0.04589,88602.0,88601.0,0.00111333]
[1765742984295,0.007,88602.0,88601.0,0.0027262]
[1765742985300,0.003,88602.0,88601.0,0.0017262]
[1765742985498,0.01168,88613.0,88610.0,0.0112854]
[1765742985945,0.03472,88613.0,88610.0,0.0112854]
[1765742986393,0.01168,88613.0,88610.0,0.0112854]
[1765742986663,0.03472,88613.0,88611.0,0.22570561]
[1765742987083,0.02304,88619.0,88616.0,0.01128464]
[1765742987290,0.02304,88619.0,88617.0,0.22569033]
[1765742987484,0.01166,88620.0,88617.0,0.22569033]
[1765742987485,0.01166,88620.0,88619.0,0.22568523]
[1765742987687,0.0347,88620.0,88619.0,0.22568523]
[1765742987913,0.05108,88620.0,88619.0,0.22568523]
[1765742988916,0.05408,88620.0,88619.0,0.22668523]
[1765742989482,0.05108,88620.0,88619.0,0.22568523]
[1765742989708,0.05308,88620.0,88619.0,0.22668523]
[1765742996484,0.03004,88620.0,88619.0,0.22668523]
[1765742997168,0.01366,88620.0,88619.0,0.22668523]
[1765742998228,0.03853,88620.0,88619.0,0.22668523]
[1765742999010,0.002,88620.0,88619.0,0.2282981]
[1765742999250,0.002,88620.0,88619.0,0.5189981]
[1765743000428,0.002,88620.0,88619.0,0.6313981]
[1765743000628,0.002,88620.0,88619.0,0.5189981]
[1765743001050,0.02487,88629.0,88626.0,0.23694914]
[1765743001603,0.02487,88629.0,88627.0,0.22566251]
[1765743001960,0.01646,88628.0,88627.0,0.22566251]
[1765743002372,0.01646,88628.0,88590.0,0.0004]
[1765743002373,0.01646,88627.0,88590.0,0.0004]
[1765743002567,0.22575147,88593.0,88590.0,0.0004]
[1765743002765,0.38397903,88593.0,88590.0,0.0004]
[1765743002964,0.8148374,88593.0,88590.0,0.0004]
[1765743003164,0.73163741,88593.0,88590.0,0.0004]
[1765743003329,0.58720147,88593.0,88590.0,0.0004]
[1765743003546,0.69954903,88593.0,88590.0,0.0004]
[1765743004289,0.7040683,88593.0,88590.0,0.0004]
[1765743004482,0.7140683,88593.0,88592.0,0.0014]
[1765743005167,0.7230683,88593.0,88592.0,0.0024]
[1765743005784,0.4323683,88593.0,88592.0,0.0024]
[1765743006195,0.30218074,88593.0,88592.0,0.0024]
[1765743006391,0.25633147,88593.0,88592.0,0.0024]
[1765743006994,0.24633147,88593.0,88592.0,0.0014]
[1765743007196,0.26279147,88593.0,88592.0,0.0014]
[1765743007433,0.29166147,88593.0,88592.0,0.0024]
[1765743008017,0.28266147,88593.0,88592.0,0.0014]
[1765743008822,0.26079147,88593.0,88592.0,0.0014]
[1765743009256,0.28566147,88593.0,88592.0,0.0014]
[1765743010131,0.28566147,88593.0,88590.0,0.0004]
[1765743010132,0.22575656,88591.0,88590.0,0.0004]
[1765743010351,0.35456412,88591.0,88590.0,0.0004]
[1765743010570,0.67013412,88591.0,88590.0,0.0004]
[1765743011310,0.67813412,88591.0,88590.0,0.0014]
[1765743011512,0.67013412,88591.0,88590.0,0.0004]
[1765743011929,0.68113412,88591.0,88590.0,0.0014]
[1765743012698,0.69113412,88591.0,88590.0,0.0024]
[1765743013398,0.70242666,88591.0,88590.0,0.0024]
[1765743018296,0.81293428,88591.0,88590.0,0.0024]
[1765743019018,0.70242666,88591.0,88590.0,0.0024]
[1765743022111,0.69113412,88591.0,88590.0,0.0024]
[1765743022319,0.69113412,88591.0,88560.0,0.01129177]
[1765743022320,0.01129394,88543.0,88540.0,0.00834014]
[1765743022491,0.01129394,88543.0,88533.0,0.0004]
[1765743022492,0.25395405,88541.0,88533.0,0.0004]
[1765743022728,0.13781756,88538.0,88537.0,0.00481571]
[1765743022933,0.02547,88538.0,88537.0,0.00481571]
[1765743023137,0.05034,88538.0,88537.0,0.00481571]
[1765743024450,0.26461206,88538.0,88537.0,0.00481571]
[1765743024663,0.16268756,88538.0,88537.0,0.00481571]
[1765743024892,0.16268756,88538.0,88516.0,0.05878099]
[1765743024893,0.22590191,88534.0,88516.0,0.05878099]
[1765743025090,0.05034,88538.0,88516.0,0.02019099]
[1765743025091,0.51664529,88517.0,88516.0,0.02019099]
[1765743025301,0.64687285,88517.0,88516.0,0.02019099]
[1765743025514,0.62899285,88517.0,88516.0,0.02019099]
[1765743025728,0.64687285,88517.0,88516.0,0.02019099]
[1765743026396,0.64687285,88517.0,88510.0,0.00294477]
[1765743026397,0.62900562,88512.0,88510.0,0.00294477]
[1765743026880,0.62900562,88512.0,88505.0,5.11032652]
[1765743026881,0.70435556,88506.0,88505.0,5.11032652]
[1765743027099,0.77843328,88506.0,88505.0,4.64991944]
[1765743027317,0.98718321,88506.0,88505.0,4.60111526]
[1765743027532,0.98718321,88506.0,88505.0,3.4556336]
[1765743027533,1.18123065,88506.0,88505.0,3.4556336]
[1765743027745,0.81858822,88506.0,88505.0,2.66248189]
[1765743027945,0.83714169,88506.0,88505.0,2.23493528]
[1765743028150,0.83770392,88506.0,88505.0,1.97534526]
[1765743028357,0.79526007,88506.0,88505.0,1.84525516]
[1765743028503,0.79526007,88506.0,88505.0,1.33398148]
[1765743028504,0.85176509,88506.0,88505.0,1.33398148]
[1765743028739,2.11234756,88501.0,88500.0,8.679221]
[1765743028948,0.79965311,88501.0,88500.0,8.54258938]
[1765743029297,0.70270375,88501.0,88500.0,7.77254927]
[1765743029428,0.7545608,88501.0,88500.0,4.33753005]
[1765743029630,0.74430168,88501.0,88500.0,3.99985122]
[1765743029832,0.74430168,88501.0,88500.0,3.84866536]
[1765743029833,0.66975666,88501.0,88500.0,3.84866536]
[1765743030035,0.60491166,88501.0,88500.0,3.67570866]
[1765743030258,0.8235247,88501.0,88500.0,3.54427613]
[1765743030599,0.8235247,88501.0,88500.0,1.28172754]
[1765743030600,0.63747058,88501.0,88500.0,1.28172754]
[1765743030754,0.66628562,88501.0,88500.0,0.65617953]
[1765743030998,0.01130007,88495.0,88492.0,0.3000039]
[1765743031342,2.62905413,88493.0,88492.0,0.25476068]
[1765743031565,1.22147432,88493.0,88489.0,1e-08]
[1765743031732,0.01816,88494.0,88469.0,1e-08]
[1765743031733,0.82422728,88470.0,88469.0,1e-08]
[1765743031936,0.81642822,88470.0,88469.0,1e-08]
[1765743032095,0.67914661,88464.0,88435.0,0.3]
[1765743032296,0.33849724,88437.0,88435.0,0.3]
[1765743032806,0.35665724,88437.0,88435.0,0.3]
[1765743033013,0.35665724,88437.0,88436.0,0.07587473]
[1765743033412,0.64735724,88437.0,88436.0,0.07587473]
[1765743034293,0.64735724,88437.0,88410.0,4.494e-05]
[1765743034294,0.56689621,88426.0,88410.0,4.494e-05]
[1765743034493,1.05473154,88430.0,88411.0,0.06776413]
[1765743034494,0.33856119,88412.0,88411.0,0.06776413]
[1765743034708,0.33856119,88412.0,88411.0,0.069377]
[1765743034709,0.11234756,88412.0,88411.0,0.069377]
[1765743035254,0.00099999,88440.0,88411.0,0.069377]
[1765743035255,0.11234756,88417.0,88411.0,0.0806878]
[1765743035452,0.11234756,88421.0,88416.0,0.00161287]
[1765743035652,0.01130978,88419.0,88416.0,0.00161287]
[1765743035913,0.11234756,88417.0,88416.0,0.00161287]
[1765743036672,0.11234756,88412.0,88411.0,0.06876413]
[1765743036874,0.11534756,88412.0,88411.0,0.070377]
[1765743037187,0.11234756,88412.0,88411.0,0.070377]
[1765743037410,0.11234756,88412.0,88411.0,0.069377]
[1765743037773,0.01230978,88419.0,88411.0,0.069377]
[1765743037774,0.001,88419.0,88411.0,0.069377]
[1765743037968,0.11334756,88419.0,88412.0,0.01131068]
[1765743038273,0.11234756,88419.0,88412.0,0.00161287]
[1765743038567,0.11234756,88413.0,88412.0,0.00161287]
[1765743038797,0.0113085,88429.0,88412.0,0.00161287]
[1765743039004,0.11234756,88424.0,88412.0,0.00161287]
[1765743039300,0.11234756,88424.0,88411.0,0.07907493]
[1765743039301,3.93065257,88412.0,88411.0,0.06776413]
[1765743040126,4.33370013,88412.0,88411.0,0.06776413]
[1765743040327,4.335313,88412.0,88411.0,0.06776413]
[1765743040531,4.044613,88412.0,88411.0,0.06776413]
[1765743041313,4.336313,88412.0,88411.0,0.06776413]
[1765743041717,4.335313,88412.0,88411.0,0.06776413]
[1765743041920,4.335313,88412.0,88411.0,0.07454504]
[1765743042248,4.335313,88412.0,88411.0,0.06876413]
[1765743042249,4.337313,88412.0,88411.0,0.06876413]
[1765743042435,3.93265257,88412.0,88411.0,0.06876413]
[1765743042628,3.93165257,88412.0,88411.0,0.16824252]
[1765743042873,3.93265257,88412.0,88411.0,0.16924252]
[1765743043025,3.93265257,88412.0,88411.0,0.37349041]
[1765743043225,3.93165257,88412.0,88411.0,0.37349041]
[1765743043429,3.85665257,88412.0,88411.0,0.66419041]
[1765743043630,3.65681257,88412.0,88411.0,0.66419041]
[1765743043858,3.65581257,88412.0,88411.0,1.23859341]
[1765743044069,3.65681257,88412.0,88411.0,1.23759341]
[1765743044271,3.65681257,88412.0,88411.0,1.12519341]
[1765743044498,3.6541597,88412.0,88411.0,1.24059341]
[1765743044698,2.49621771,88412.0,88411.0,1.14945298]
[1765743044871,2.35548575,88412.0,88411.0,1.14645298]
[1765743045057,2.11787422,88412.0,88411.0,1.14683647]
[1765743045266,2.11887422,88412.0,88411.0,1.15483647]
[1765743045468,2.11687422,88412.0,88411.0,1.15483647]
[1765743045677,2.11587422,88412.0,88411.0,1.14683647]
[1765743046086,2.11787422,88412.0,88411.0,1.15683647]
[1765743046324,2.11787422,88412.0,88411.0,0.86108347]
[1765743046546,2.11787422,88412.0,88411.0,0.80338847]
[1765743046749,2.06987422,88412.0,88411.0,0.81843108]
[1765743046974,2.06987422,88412.0,88411.0,0.53841508]
[1765743047141,2.06587422,88412.0,88411.0,0.63481508]
[1765743047465,2.06987422,88412.0,88411.0,1.11640508]
[1765743047643,2.06987422,88412.0,88411.0,1.05924747]
[1765743047847,2.06787422,88412.0,88411.0,0.82636347]
[1765743048049,2.06787422,88412.0,88411.0,0.82136347]
[1765743048318,2.06887422,88412.0,88411.0,0.75856847]
[1765743048450,2.06887422,88412.0,88411.0,0.81507349]